bitfinex-derivatives/quotes_BNBF0:USTF0_20250331
["timestamp","ask_amount","ask_price","bid_price","bid_amount"]
[1743399209676,0.30441185,604.19,603.41,0.33144959]
[1743399210177,1.11861616,604.18,603.41,0.33144959]
[1743399210377,0.30441185,604.17,603.41,0.33144959]
[1743399210782,1.11861616,604.16,603.41,0.33144959]
[1743399210979,0.30441185,604.15,603.41,0.33144959]
[1743399211183,1.42302801,604.15,603.41,0.33144959]
[1743399211384,1.42302801,604.14,603.41,0.33144959]
[1743399211685,1.11861616,604.14,603.41,0.33144959]
[1743399211885,1.11861616,604.13,603.41,0.33144959]
[1743399212281,4.64725702,604.13,603.41,0.33144959]
[1743399212482,3.60086809,604.12,603.41,0.33144959]
[1743399212687,3.52803272,604.12,603.41,0.33144959]
[1743399212887,5.74395155,604.12,603.41,0.33144959]
[1743399213088,6.86256771,604.11,603.41,0.33144959]
[1743399213384,5.74395155,604.1,603.41,0.33144959]
[1743399213587,5.74395155,604.09,603.41,0.33144959]
[1743399213790,2.14308346,604.08,603.41,0.33144959]
[1743399213994,0.82426287,604.08,603.41,0.33144959]
[1743399214189,3.73266489,604.08,603.41,0.33144959]
[1743399214389,3.60086809,604.07,603.41,0.33144959]
[1743399214590,5.74395155,604.07,603.41,0.33144959]
[1743399214893,2.14308346,604.06,603.41,0.33144959]
[1743399215092,6.43643474,604.06,603.41,0.33144959]
[1743399215293,4.42513096,604.05,603.41,0.33144959]
[1743399215493,0.82426287,604.04,603.41,0.33144959]
[1743399215688,3.73266489,604.04,603.41,0.33144959]
[1743399215888,1.38494926,604.03,603.41,0.33144959]
[1743399216092,2.20921213,604.03,603.41,0.33144959]
[1743399216290,0.82426287,604.03,603.41,0.33144959]
[1743399216492,1.11861616,604.06,603.41,0.33144959]
[1743399216692,1.481,604.07,603.41,0.33144959]
[1743399216893,0.28844002,604.02,603.41,0.33144959]
[1743399218597,1.481,604.07,603.41,0.33144959]
[1743399218895,0.3044371,604.06,603.41,0.33144959]
[1743399219894,0.28844122,604.05,603.41,0.33144959]
[1743399220190,0.30444005,604.04,603.41,0.33144959]
[1743399221290,1.12831416,604.04,603.41,0.33144959]
[1743399221495,0.30444005,604.03,603.41,0.33144959]
[1743399221692,5.35491476,604.03,603.41,0.33144959]
[1743399221994,6.04456045,604.02,603.41,0.33144959]
[1743399222196,0.82387411,604.01,603.41,0.33144959]
[1743399222496,0.30444316,604.0,603.41,0.33144959]
[1743399222689,2.44590922,604.01,603.41,0.33144959]
[1743399222894,0.30444316,604.0,603.41,0.33144959]
[1743399223294,1.12831727,604.0,603.41,0.33144959]
[1743399223490,0.30444316,603.99,603.41,0.33144959]
[1743399223695,4.03671929,603.99,603.41,0.33144959]
[1743399223890,4.42146356,603.98,603.41,0.33144959]
[1743399224095,0.82341585,603.97,603.41,0.33144959]
[1743399224391,3.73181787,603.97,603.41,0.33144959]
[1743399224597,1.3838645,603.96,603.41,0.33144959]
[1743399224895,2.20728035,603.97,603.41,0.33144959]
[1743399225291,0.28836354,604.01,603.41,0.33144959]
[1743399226391,0.28836354,604.01,602.42,2.52044129]
[1743399226595,0.28836354,604.01,602.44,2.85242455]
[1743399226796,1.11177939,604.01,602.44,2.85242455]
[1743399227096,5.33721961,604.01,602.44,2.85242455]
[1743399227297,4.41964994,604.0,602.46,0.33197224]
[1743399227497,0.82341585,603.99,602.46,0.33197224]
[1743399227698,0.82341585,603.99,602.47,0.28564599]
[1743399227897,3.73181787,603.99,602.49,0.33195571]
[1743399228097,1.67232484,603.98,602.5,0.28564599]
[1743399228296,2.49574069,603.98,602.52,0.33193918]
[1743399228495,2.49574069,603.98,602.53,0.28564599]
[1743399228691,2.49574069,603.98,602.44,0.28846034]
[1743399228692,2.49574069,603.98,602.55,0.33192266]
[1743399228996,0.28846034,603.98,602.56,0.28564599]
[1743399229193,0.28846034,603.98,602.58,0.33190613]
[1743399229396,0.28846034,603.98,602.59,0.28564599]
[1743399229597,0.28846034,603.98,602.61,0.33188961]
[1743399229795,0.28846034,603.98,602.62,0.28564599]
[1743399229999,0.28846034,603.98,602.64,0.33187309]
[1743399230195,0.28846034,603.98,602.65,0.28564599]
[1743399230400,0.28846034,603.98,602.67,0.33185657]
[1743399230601,2.90840202,604.0,602.68,0.28564599]
[1743399230803,8.64317277,604.04,602.7,0.33184005]
[1743399231003,5.73477075,604.03,602.71,0.28564599]
[1743399231203,0.82341585,604.02,602.73,0.33182353]
[1743399231504,5.73226593,604.03,602.74,0.28564599]
[1743399231699,3.73181787,604.02,602.76,0.33180702]
[1743399231899,1.67019661,604.01,602.77,0.28564599]
[1743399232100,2.49361246,604.01,602.77,0.28564599]
[1743399232499,2.49361246,604.01,602.79,0.3317905]
[1743399232704,0.28841851,604.01,602.8,0.28557643]
[1743399232901,0.28841851,604.01,602.82,0.33177399]
[1743399233204,0.28841851,604.01,602.83,0.28557643]
[1743399233404,0.28841851,604.01,602.85,0.33175748]
[1743399233704,2.20519395,604.05,602.86,0.28557643]
[1743399233903,2.20519395,604.05,602.88,0.33174097]
[1743399234204,2.20519395,604.05,602.89,0.28557643]
[1743399234504,3.32381011,604.06,602.91,0.33172446]
[1743399234705,3.32381011,604.06,602.92,0.28557643]
[1743399234902,0.28838265,604.04,602.94,0.33170796]
[1743399235099,0.28838265,604.04,602.95,0.28551464]
[1743399235504,0.28838265,604.04,602.96,0.33169696]
[1743399235706,0.28838265,604.04,602.97,0.28551464]
[1743399235905,0.28838265,604.04,602.98,0.33168595]
[1743399236105,0.28838265,604.04,602.99,0.28551464]
[1743399236300,0.28838265,604.04,603.0,0.33167495]
[1743399236504,0.28838265,604.04,603.01,0.28551464]
[1743399236804,0.28838265,604.04,603.02,0.33166395]
[1743399237000,0.28838265,604.04,603.03,0.28551464]
[1743399237306,0.28838265,604.04,603.04,0.33165295]
[1743399237504,0.28838265,604.04,603.05,0.28551464]
[1743399238103,0.28838265,604.04,603.06,0.33164195]
[1743399239606,1.481,604.07,603.06,0.33164195]
[1743399240006,0.28841731,604.03,603.06,0.33164195]
[1743399241602,1.11078483,604.03,603.06,0.33164195]
[1743399241806,4.01918685,604.03,603.06,0.33164195]
[1743399242007,2.20356435,604.02,603.06,0.33164195]
[1743399242208,2.20339007,604.02,603.06,0.33164195]
[1743399242407,0.28841731,604.03,603.06,0.33164195]
[1743399242604,5.72853542,604.06,603.06,0.33164195]
[1743399242605,2.89999395,604.02,603.06,0.33164195]
[1743399243107,0.28840177,604.02,603.06,0.33164195]
[1743399243309,2.49179184,604.02,603.06,0.33164195]
[1743399243509,0.28840177,604.02,603.06,0.33164195]
[1743399244210,1.11059501,604.02,603.06,0.33164195]
[1743399244509,2.49179184,604.02,603.06,0.33164195]
[1743399244712,0.28840177,604.02,603.06,0.33164195]
[1743399245509,0.28840177,604.02,603.07,0.28562545]
[1743399245713,2.20339007,604.03,603.07,0.28562545]
[1743399245910,0.28837787,604.01,603.07,0.28562545]
[1743399246413,0.28837787,604.01,603.08,0.33163096]
[1743399248216,0.28837787,604.01,603.09,0.28564912]
[1743399248416,0.28837787,604.01,603.1,0.33161996]
[1743399248617,0.82219324,604.05,603.1,0.61726747]
[1743399248812,2.20319775,604.05,603.11,0.28564751]
[1743399249016,4.41280496,604.05,603.11,0.28564751]
[1743399249315,5.1031917,604.04,603.11,0.28564751]
[1743399249516,2.20319775,604.03,603.11,0.28564751]
[1743399250015,2.49156009,604.03,603.11,0.28564751]
[1743399250215,0.28836234,604.03,603.11,0.33161446]
[1743399250416,0.28836234,604.03,603.12,0.28564992]
[1743399251118,0.28836234,604.03,603.13,0.28564744]
[1743399251417,4.01054953,604.03,603.14,0.28564744]
[1743399251715,4.01054953,604.03,603.11,0.33161446]
[1743399251716,2.20319775,604.02,603.15,0.28564744]
[1743399251915,2.20319775,604.02,603.12,0.28564744]
[1743399252115,2.20319775,604.02,603.13,0.28564744]
[1743399252315,0.82219324,604.05,603.11,0.33161446]
[1743399252912,0.28841731,604.04,603.11,0.33161446]
[1743399253515,1.11148066,604.04,603.11,0.33161446]
[1743399253911,4.01147461,604.04,603.11,0.33161446]
[1743399254111,4.41548395,604.03,603.11,0.33161446]
[1743399254312,0.82306335,604.02,603.11,0.33161446]
[1743399254819,0.82306335,604.02,603.12,0.28560337]
[1743399255014,2.89999395,604.02,603.13,0.33160346]
[1743399255219,5.10406181,604.02,603.14,0.28560337]
[1743399255422,2.20624433,604.01,603.15,0.33159247]
[1743399255820,1.38318098,604.01,603.15,0.33159247]
[1743399256016,1.93880264,604.06,603.15,0.33159247]
[1743399256314,1.38318098,604.06,603.15,0.33159247]
[1743399256519,1.481,604.07,603.15,0.33159247]
[1743399260516,5.2044143,604.07,603.15,0.33159247]
[1743399260720,2.20756823,604.06,603.15,0.33159247]
[1743399260920,1.38414788,604.06,603.15,0.33159247]
[1743399261118,5.53961224,604.06,603.15,0.33159247]
[1743399261320,2.20844563,604.05,603.15,0.33159247]
[1743399261522,4.42429204,604.05,603.15,0.33159247]
[1743399261720,0.82429775,604.04,603.15,0.33159247]
[1743399261921,5.94013811,604.04,603.15,0.33159247]
[1743399262123,4.42475717,604.03,603.15,0.33159247]
[1743399262317,0.82429775,604.02,603.15,0.33159247]
[1743399262521,3.7242917,604.02,603.15,0.33159247]
[1743399262722,1.38414788,604.01,603.15,0.33159247]
[1743399262923,2.20985838,604.01,603.15,0.33159247]
[1743399263323,5.74572651,604.28,603.15,0.33159247]
[1743399263521,1.11538229,604.08,603.15,0.33159247]
[1743399264124,1.11538229,604.07,603.15,0.33159247]
[1743399264522,1.38520201,604.06,603.15,0.33159247]
[1743399264719,2.5005843,604.06,603.15,0.33159247]
[1743399265025,1.11538229,604.05,603.15,0.33159247]
[1743399265225,1.1194014,604.04,603.15,0.33159247]
[1743399265919,1.1194014,604.03,603.15,0.33159247]
[1743399266323,4.65003216,604.03,603.15,0.33159247]
[1743399266519,4.720986,604.02,603.15,0.33159247]
[1743399266723,4.720986,604.02,603.16,0.28569981]
[1743399266724,2.14542875,604.01,603.16,0.28569981]
[1743399266925,0.30444298,604.0,603.16,0.28569981]
[1743399267321,3.83507374,604.0,603.16,0.28569981]
[1743399267527,3.53063076,604.0,603.16,0.28569981]
[1743399267725,1.1194014,603.99,603.16,0.28569981]
[1743399268020,3.26483015,603.99,603.17,0.2856897]
[1743399268230,1.1194014,603.98,603.16,0.2856897]
[1743399268428,4.65003216,603.98,603.17,0.2856897]
[1743399268630,3.60740646,603.97,603.16,0.2856897]
[1743399268925,4.65229417,603.97,603.17,0.2856897]
[1743399269226,4.72680786,603.96,603.16,0.2856897]
[1743399269428,5.75283521,603.95,603.17,0.2856897]
[1743399269636,5.75283521,603.94,603.16,0.2856897]
[1743399269826,5.75283521,603.93,603.18,0.2856897]
[1743399270026,8.66327886,603.92,603.19,0.2856897]
[1743399270226,4.43257136,603.91,603.2,0.2856897]
[1743399270527,0.8251649,603.9,603.21,0.2856897]
[1743399270724,4.43257136,603.9,603.16,0.2856897]
[1743399270924,0.8251649,603.89,603.17,0.2856897]
[1743399271123,2.91044365,603.89,603.16,0.2856897]
[1743399271328,5.12307257,603.89,603.17,0.2856897]
[1743399271529,2.21262892,603.88,603.17,0.2856897]
[1743399271722,2.21262892,603.88,603.18,0.2856897]
[1743399271925,2.21262892,603.88,603.16,0.2856897]
[1743399272129,5.75457921,604.06,603.16,0.2856897]
[1743399272334,3.53440017,604.05,603.16,0.2856897]
[1743399272632,3.53440017,604.05,603.17,0.33158147]
[1743399272834,1.1194014,604.04,603.18,0.2856897]
[1743399273033,3.26633755,604.04,603.18,0.2856897]
[1743399273333,1.1194014,604.03,603.18,0.2856897]
[1743399273633,6.87398061,604.03,603.18,0.2856897]
[1743399273831,5.75457921,604.02,603.18,0.2856897]
[1743399274033,5.75457921,604.01,603.19,0.33157048]
[1743399274228,0.8251649,604.0,603.2,0.2856897]
[1743399274434,5.7543751,604.01,603.21,0.33155949]
[1743399274630,0.8251649,604.0,603.22,0.2856897]
[1743399274834,2.91044365,604.0,603.22,0.61724369]
[1743399275134,2.91044365,604.0,602.61,2.52044129]
[1743399275135,7.34325161,604.0,603.23,0.61718499]
[1743399275326,4.43280796,603.99,603.24,0.2856365]
[1743399275527,0.8251649,603.98,603.24,0.2856365]
[1743399275929,2.91044365,603.98,603.24,0.6171795]
[1743399276129,5.12370041,603.98,603.25,0.2856365]
[1743399276434,2.21325676,603.97,603.25,0.2856365]
[1743399276635,5.75409352,604.06,603.25,0.2856365]
[1743399276834,5.05768922,604.05,603.26,0.28565469]
[1743399277034,3.60684795,604.04,603.25,0.28565469]
[1743399277232,5.75409352,604.04,603.27,0.28565469]
[1743399277436,3.26664697,604.03,603.28,0.28565469]
[1743399277636,6.87349492,604.03,603.25,0.28565469]
[1743399277939,7.34315528,604.02,603.24,0.331543]
[1743399278132,2.21311289,604.01,603.25,0.28576152]
[1743399278538,5.7535125,604.06,603.25,0.28576152]
[1743399278738,2.14703018,604.05,603.26,0.28580661]
[1743399278941,3.73630733,604.05,603.24,0.331543]
[1743399279243,3.60648232,604.04,603.25,0.28580669]
[1743399279537,5.7535125,604.04,603.25,0.28580669]
[1743399279741,2.14703018,604.03,603.25,0.28580669]
[1743399279935,3.73630733,604.03,603.25,0.28580669]
[1743399280140,3.60648232,604.02,603.25,0.28580669]
[1743399280339,5.7535125,604.02,603.24,0.331543]
[1743399280541,3.73630733,604.01,603.24,0.331543]
[1743399280739,3.60648232,604.0,603.24,0.331543]
[1743399280940,1.94526508,603.99,603.24,0.331543]
[1743399281136,3.33251429,603.99,603.24,0.331543]
[1743399281545,2.21311289,603.99,603.24,0.331543]
[1743399281744,5.75318481,604.06,603.24,0.331543]
[1743399281946,2.14691407,604.05,603.24,0.331543]
[1743399282250,3.73630733,604.05,603.24,0.331543]
[1743399282546,3.60627074,604.04,603.24,0.331543]
[1743399282842,2.50665061,604.03,603.25,0.2857884]
[1743399283044,1.94526508,604.03,603.25,0.2857884]
[1743399283239,4.43213442,604.03,603.25,0.2857884]
[1743399283446,0.82586368,604.02,603.25,0.2857884]
[1743399283640,3.73630733,604.02,603.25,0.2857884]
[1743399283848,1.38724921,604.01,603.24,0.331543]
[1743399284041,2.21311289,604.01,603.25,0.28577487]
[1743399284444,5.75245273,604.06,603.26,0.331532]
[1743399284642,0.82586368,604.05,603.27,0.28577487]
[1743399284842,2.91044365,604.05,603.28,0.33152101]
[1743399285144,5.12355654,604.05,603.29,0.28577487]
[1743399285349,2.91044365,604.07,603.3,0.33151002]
[1743399285648,5.1220802,604.07,603.31,0.28558616]
[1743399285845,1.38633575,604.06,603.31,0.28558616]
[1743399286048,1.38633575,604.07,603.31,0.28558616]
[1743399287050,1.709,604.08,603.31,0.28558616]
[1743399288745,1.709,604.08,603.32,0.33149903]
[1743399288956,1.709,604.08,603.33,0.28539995]
[1743399289752,1.709,604.08,603.34,0.33148804]
[1743399289949,1.709,604.08,603.35,0.28539995]
[1743399290149,1.709,604.08,603.35,0.6168825]
[1743399290350,1.709,604.08,603.35,0.33148255]
[1743399292654,1.709,604.08,603.36,0.28554557]
[1743399292952,1.709,604.08,603.35,0.33148255]
[1743399297751,3.91755889,604.08,603.35,0.33148255]
[1743399297951,0.8241606,604.07,603.35,0.33148255]
[1743399298153,1.943562,604.07,603.35,0.33148255]
[1743399298350,3.32791087,604.07,603.35,0.33148255]
[1743399298746,5.11669236,604.07,603.35,0.33148255]
[1743399299048,2.20850947,604.06,603.35,0.33148255]
[1743399300751,2.20847218,604.06,603.35,0.33148255]
[1743399302049,2.20853046,604.06,603.35,0.33148255]
[1743399304052,2.90818289,604.07,603.35,0.33148255]
[1743399304254,1.709,604.08,603.35,0.33148255]
[1743399313058,1.709,604.08,603.36,0.2854635]
[1743399313565,1.709,604.08,603.35,0.33148255]
[1743399314261,0.30441558,604.07,603.35,0.33148255]
[1743399315962,1.709,604.08,603.35,0.33148255]
[1743399316564,7.45135064,604.08,603.35,0.33148255]
[1743399316767,6.04677961,604.07,603.35,0.33148255]
[1743399317068,5.05102158,604.06,603.35,0.33148255]
[1743399317269,3.59952437,604.05,603.35,0.33148255]
[1743399317466,5.74235064,604.05,603.35,0.33148255]
[1743399317663,2.14282627,604.04,603.35,0.33148255]
[1743399317866,3.73235926,604.04,603.35,0.33148255]
[1743399318068,3.59952437,604.03,603.35,0.33148255]
[1743399318269,5.74235064,604.03,603.35,0.33148255]
[1743399318569,2.14282627,604.02,603.35,0.33148255]
[1743399318765,3.73235926,604.02,603.35,0.33148255]
[1743399318969,3.59952437,604.01,603.35,0.33148255]
[1743399319265,1.1194014,604.0,603.35,0.33148255]
[1743399319470,6.86175204,604.0,602.49,2.52044129]
[1743399319667,5.74235064,603.99,602.51,0.33194469]
[1743399319868,5.74235064,603.98,602.52,0.2858431]
[1743399320169,0.82416395,603.97,602.54,0.33192817]
[1743399320369,3.73235926,603.97,602.54,0.33192817]
[1743399320567,3.59952437,603.96,602.55,0.28581295]
[1743399320870,0.82416024,603.95,602.57,0.33191164]
[1743399321066,1.94356164,603.95,602.57,0.33191164]
[1743399321271,3.32789642,603.95,602.58,0.28581295]
[1743399321470,3.32789642,603.95,602.6,0.33189512]
[1743399321672,2.20849502,603.95,602.61,0.28581295]
[1743399321970,2.90819531,603.97,602.63,0.33187859]
[1743399321971,2.20849502,603.96,602.63,0.33187859]
[1743399322373,2.20849502,603.96,602.64,0.28581295]
[1743399322771,2.20849502,603.96,602.66,0.33186207]
[1743399323069,2.20849502,603.96,602.67,0.28581295]
[1743399323272,2.20849502,603.96,602.69,0.33184555]
[1743399323667,2.20849502,603.96,602.7,0.28581295]
[1743399323866,2.20849502,603.96,602.72,0.33182904]
[1743399324069,2.20849502,603.96,602.73,0.28581295]
[1743399324374,2.20849502,603.96,602.75,0.33181252]
[1743399324569,2.20849502,603.96,602.76,0.28581295]
[1743399324769,2.20849502,603.96,602.78,0.33179601]
[1743399325275,2.20849502,603.96,602.79,0.28577929]
[1743399325475,2.20849502,603.96,602.81,0.33177949]
[1743399325675,2.20849502,603.96,602.82,0.28577929]
[1743399325874,2.20849502,603.96,602.84,0.33176298]
[1743399326077,2.20849502,603.96,602.85,0.28577929]
[1743399326376,2.20849502,603.96,602.87,0.33174647]
[1743399326575,2.20849502,603.96,602.88,0.2857794]
[1743399326769,2.20849502,603.96,602.89,0.33173547]
[1743399326970,2.20849502,603.96,602.9,0.2857794]
[1743399327576,2.20849502,603.96,602.91,0.61751696]
[1743399327870,2.20849502,603.96,602.92,0.2857925]
[1743399328075,2.20849502,603.96,602.94,0.33170796]
[1743399328275,2.20844997,603.96,602.95,0.2857925]
[1743399328476,2.20844997,603.96,602.96,0.33169696]
[1743399328671,2.20844997,603.96,602.97,0.2857925]
[1743399328870,2.20844997,603.96,602.98,0.33168595]
[1743399329069,2.20844997,603.96,602.99,0.2857925]
[1743399329273,2.20844997,603.96,603.0,0.33167495]
[1743399329473,2.20844997,603.96,603.01,0.2857925]
[1743399329971,2.20844997,603.96,603.02,0.33166395]
[1743399330275,2.20844997,603.96,603.03,0.2857925]
[1743399330475,2.20844997,603.96,603.04,0.33165295]
[1743399330675,2.20844997,603.96,603.05,0.2857925]
[1743399330971,2.20844997,603.96,603.06,0.33164195]
[1743399330972,1.38433478,603.96,603.06,0.33164195]
[1743399331177,4.29253009,603.97,603.07,0.2857925]
[1743399331476,1.1194014,603.97,603.08,0.33163096]
[1743399331672,1.1194014,603.97,603.09,0.2857925]
[1743399331971,1.841,603.98,603.09,0.2857925]
[1743399332172,1.841,603.98,603.1,0.33161996]
[1743399332379,1.841,603.98,603.11,0.2857925]
[1743399332581,1.841,603.98,603.12,0.33160896]
[1743399332778,1.841,603.98,603.13,0.2857925]
[1743399332980,1.841,603.98,603.14,0.33159797]
[1743399333180,1.841,603.98,603.15,0.2857925]
[1743399333380,1.841,603.98,603.16,0.33158697]
[1743399333580,1.841,603.98,603.17,0.2857925]
[1743399333783,1.841,603.98,603.18,0.33157598]
[1743399333982,1.841,603.98,603.19,0.2857925]
[1743399334283,1.841,603.98,603.19,0.61736298]
[1743399334484,1.841,603.98,603.2,0.2857925]
[1743399336482,1.841,603.98,603.21,0.28569143]
[1743399336679,1.841,603.98,603.2,0.28569143]
[1743399336877,4.74919531,603.98,603.19,0.33157048]
[1743399337081,2.1429338,603.97,603.19,0.33157048]
[1743399337380,8.65045444,603.97,603.19,0.33157048]
[1743399337582,5.74218342,603.96,603.19,0.33157048]
[1743399337784,1.31876089,603.95,603.19,0.33157048]
[1743399337984,3.73233057,603.95,603.19,0.33157048]
[1743399338184,3.59932533,603.94,603.19,0.33157048]
[1743399338486,1.1194014,603.93,603.19,0.33157048]
[1743399338787,6.86162288,603.93,603.19,0.33157048]
[1743399338984,5.74222148,603.92,603.19,0.33157048]
[1743399339186,2.14289615,603.91,603.19,0.33157048]
[1743399339387,3.73233057,603.91,603.19,0.33157048]
[1743399339685,3.59932533,603.9,603.19,0.33157048]
[1743399339985,5.74222148,603.9,603.19,0.33157048]
[1743399340188,3.26229755,603.89,603.19,0.33157048]
[1743399340486,7.3316559,603.89,603.19,0.33157048]
[1743399340788,5.11665076,603.88,603.19,0.33157048]
[1743399341081,2.20845545,603.87,603.19,0.33157048]
[1743399341587,2.90819531,603.97,603.19,0.33157048]
[1743399341588,5.74009991,603.96,603.19,0.33157048]
[1743399341785,2.14208324,603.95,602.23,2.52044129]
[1743399341988,0.82413526,603.95,602.24,0.28590121]
[1743399342185,3.73233057,603.95,602.25,0.28590121]
[1743399342382,1.38432019,603.94,602.26,0.28590121]
[1743399342580,2.20845545,603.94,602.27,0.28590121]
[1743399342982,2.20845545,603.94,602.28,0.28590121]
[1743399343181,0.82413526,603.94,602.29,0.28590121]
[1743399343387,5.11550352,603.97,602.3,0.28590121]
[1743399343685,4.42025619,603.96,602.31,0.28585561]
[1743399343886,3.73233057,603.95,602.32,0.28585561]
[1743399344086,1.38317295,603.94,602.33,0.28585561]
[1743399344386,2.20730821,603.94,602.34,0.28585561]
[1743399344587,2.90819531,603.97,602.35,0.28585561]
[1743399344588,4.420163,603.96,602.35,0.28585561]
[1743399344786,0.82413526,603.95,602.36,0.28585561]
[1743399345086,0.82413526,603.95,602.37,0.28585561]
[1743399345287,3.73233057,603.95,602.38,0.28585055]
[1743399345587,3.73233057,603.95,601.4,2.52044129]
[1743399345588,1.38317295,603.94,602.39,0.28585055]
[1743399345788,2.20730821,603.94,602.4,0.28585055]
[1743399345984,2.20730821,603.94,602.41,0.28585055]
[1743399346189,2.20730821,603.94,602.42,0.28585055]
[1743399346482,2.20730821,603.94,602.43,0.28585055]
[1743399346688,4.41983337,603.96,602.44,0.28585055]
[1743399346883,0.82413526,603.95,602.19,2.52044129]
[1743399347086,0.82327522,603.95,602.2,0.28580087]
[1743399347385,3.73147053,603.95,602.21,0.28580087]
[1743399347589,1.38317295,603.94,602.22,0.28580087]
[1743399347888,4.41892279,603.95,602.23,0.28580087]
[1743399348088,2.20644817,603.94,602.24,0.28580087]
[1743399348290,2.90819531,603.94,602.33,2.52044129]
[1743399348490,7.32716157,603.94,602.34,0.28580087]
[1743399348686,2.20644817,603.93,602.35,0.28580087]
[1743399348886,2.20644817,603.93,602.36,0.28580087]
[1743399349190,2.20644817,603.93,602.37,0.28580087]
[1743399349391,4.41909179,603.96,602.38,0.28580087]
[1743399349592,0.82327522,603.95,602.48,2.52044129]
[1743399349890,3.73147053,603.95,602.49,0.28580087]
[1743399350192,1.38317295,603.94,602.5,0.28580087]
[1743399350384,4.41942071,603.95,602.51,0.28580087]
[1743399350586,2.20644817,603.94,602.52,0.28580087]
[1743399350787,4.41940576,603.96,602.53,0.28580087]
[1743399350988,0.82327522,603.95,602.54,0.28580087]
[1743399351190,3.73147053,603.95,602.55,0.28580087]
[1743399351390,1.38317295,603.94,602.56,0.28580087]
[1743399351585,0.82327522,603.94,602.57,0.28580087]
[1743399351785,0.82327522,603.96,602.58,0.28580087]
[1743399351988,3.59645437,603.96,602.59,0.28580087]
[1743399352188,3.59645437,603.96,602.47,2.52044129]
[1743399352189,5.73742753,603.96,602.6,0.28580087]
[1743399352391,5.04916847,603.95,602.47,2.52044129]
[1743399352593,3.59645437,603.94,602.48,0.28583033]
[1743399352891,0.82327522,603.93,602.49,0.28583033]
[1743399353092,1.94267662,603.93,602.53,2.52044129]
[1743399353293,2.50257435,603.93,602.54,0.28583033]
[1743399353488,1.1194014,603.94,602.55,0.28583033]
[1743399353793,1.1194014,603.94,602.56,0.28583033]
[1743399353994,1.1194014,603.94,602.57,0.28583033]
[1743399354191,1.1194014,603.94,602.58,0.28582596]
[1743399354390,2.20676849,603.97,602.59,0.28582596]
[1743399354590,0.82359554,603.97,602.6,0.28582596]
[1743399354894,2.90703336,603.97,602.61,0.28582596]
[1743399355194,2.20676849,603.97,602.62,0.28582596]
[1743399355492,0.82359554,603.97,602.63,0.28582596]
[1743399355692,1.841,603.98,602.64,0.28582596]
[1743399355889,1.841,603.98,602.65,0.28582714]
[1743399356088,1.841,603.98,602.66,0.28582714]
[1743399356291,1.841,603.98,602.52,2.52044129]
[1743399356292,1.841,603.98,602.53,0.28582714]
[1743399356486,1.841,603.98,602.54,0.28582714]
[1743399356691,1.841,603.98,602.55,0.28582714]
[1743399356891,1.841,603.98,602.56,0.28582714]
[1743399357091,1.841,603.98,602.52,2.52044129]
[1743399357092,1.841,603.98,602.57,0.28582714]
[1743399357292,1.841,603.98,602.58,0.28582714]
[1743399357492,1.841,603.98,602.59,0.28582714]
[1743399357688,1.841,603.98,602.6,0.28582714]
[1743399357994,1.841,603.98,602.61,0.28582714]
[1743399358187,1.841,603.98,602.62,0.28582714]
[1743399358388,1.841,603.98,602.63,0.28582714]
[1743399358692,0.30448152,603.97,602.64,0.28582714]
[1743399358893,7.32754235,603.97,602.65,0.28582714]
[1743399359092,2.20704466,603.96,602.49,0.28582714]
[1743399359293,2.20704466,603.96,602.5,0.28582714]
[1743399359489,2.20704466,603.96,602.43,2.52044129]
[1743399359794,2.20704466,603.96,602.44,0.28583525]
[1743399359995,0.3044741,603.95,602.45,0.28583525]
[1743399360194,0.3044741,603.95,602.46,0.28583525]
[1743399360391,0.3044741,603.95,602.47,0.28583525]
[1743399360595,0.3044741,603.95,602.48,0.28583525]
[1743399360794,5.35292544,603.95,602.49,0.28583525]
[1743399360995,5.73828829,603.94,602.49,0.28583525]
[1743399361196,0.8236223,603.93,602.5,0.28583525]
[1743399361491,6.5038979,603.93,602.51,0.28583525]
[1743399361691,4.42048684,603.92,602.52,0.28583525]
[1743399361897,0.8236223,603.91,602.53,0.28583525]
[1743399362097,0.8236223,603.91,602.44,0.28583525]
[1743399362293,3.32643314,603.92,602.45,0.28583525]
[1743399362501,3.32643314,603.92,602.46,0.28579986]
[1743399362706,2.20703174,603.92,602.49,2.52044129]
[1743399362906,5.73835432,603.96,602.5,0.28579986]
[1743399363203,2.14145733,603.95,602.5,0.28579986]
[1743399363400,3.73066882,603.95,602.5,0.28579986]
[1743399363602,3.59690212,603.94,602.5,0.28579986]
[1743399363801,0.82363546,603.93,602.5,0.28579986]
[1743399364308,3.73066882,603.93,602.5,0.28579986]
[1743399364509,3.59690212,603.92,602.5,0.28579986]
[1743399364702,5.73835945,603.92,602.18,0.28579986]
[1743399364905,3.26085873,603.91,602.19,0.28579986]
[1743399365106,6.85776085,603.91,602.2,0.28579986]
[1743399365306,8.64590186,603.9,602.21,0.28579986]
[1743399365507,5.7388685,603.89,602.21,0.28579986]
[1743399365707,0.82363546,603.88,602.22,0.28579986]
[1743399365903,5.73919429,603.89,602.23,0.28579986]
[1743399366103,3.73066882,603.88,602.24,0.28584973]